[Event "2nd Guotai Cup Belt Road 2019"]
[Site "Qinhuangdao"]
[Date "2019.04.19"]
[Round "4.9"]
[White "Karthik Venkataraman"]
[Black "Hu, Yu A."]
[Result "1-0"]
[ECO "A45"]
[WhiteElo "2505"]
[BlackElo "2051"]
[Annotator "ChessBase"]
[PlyCount "67"]
[EventDate "2019.04.16"]
[EventType "swiss"]
[EventCountry "CHN"]
[SourceTitle "playchess.com"]
[Source "ChessBase"]
[SourceQuality "1"]
[TimeControl "5400+30"]

1. d4 {[%emt 0:01:24]} Nf6 {[%emt 0:00:00]} 2. Bg5 {[%emt 0:00:10]} Ne4 {[%emt 0:00:09]} 3. Bf4 {[%emt 0:00:05]} d5 {[%emt 0:02:14]} 4. e3 {[%emt 0:00:06]} c5 {[%emt 0:03:45]} 5. Bd3 {[%emt 0:00:05]} Nf6 {[%emt 0:03:52]} 6. Nc3 {[%emt 0:00:30]} cxd4 {[%emt 0:05:43]} 7. exd4 {[%emt 0:01:45]} e6 {[%emt 0:00:53]} 8. Nb5 {[%emt 0:00:32]} Na6 {[%emt 0:00:07]} 9. c3 {[%emt 0:00:04]} Be7 {[%emt 0:00:37]} 10. h3 {[%emt 0:00:35]} O-O {[%emt 0:00:47]} 11. Nf3 {[%emt 0:00:05]} Bd7 {[%emt 0:00:31]} 12. a4 {[%emt 0:00:07]} Bxb5 {[%emt 0:04:28]} 13. axb5 {[%emt 0:00:08]} Nb8 {[%emt 0:00:06]} 14. O-O {[%emt 0:00:24]} Nbd7 {[%emt 0:00:30]} 15. b3 {[%emt 0:00:57]} Nb6 {[%emt 0:13:49]} 16. c4 {[%emt 0:00:29]} dxc4 {[%emt 0:01:28]} 17. bxc4 {[%emt 0:00:05]} g6 {[%emt 0:00:36]} 18. Qe2 {[%emt 0:00:51]} Qd7 {[%emt 0:00:32]} 19. Rfe1 {[%emt 0:04:34]} Nh5 {[%emt 0:08:53]} 20. Be5 {[%emt 0:02:06]} Rfd8 {[%emt 0:01:43]} 21. Qe3 {[%emt 0:00:27]} Qc8 {[%emt 0:12:53]} 22. g4 {[%emt 0:09:55]} Nf6 {[%emt 0:00:54]} 23. Qh6 {[%emt 0:00:22]} Bf8 {[%emt 0:00:33]} 24. Qh4 {[%emt 0:01:08]} Nfd7 {[%emt 0:00:43]} 25. Bf4 {[%emt 0:11:24]} Bg7 {[%emt 0:00:57]} 26. Rac1 {[%emt 0:00:45]} e5 {[%emt 0:13:37]} 27. dxe5 {[%emt 0:00:51]} Nc5 {[%emt 0:00:05]} 28. Bf1 {[%emt 0:02:30]} Nb3 {[%emt 0:05:48]} 29. Rcd1 {[%emt 0:07:37]} Rxd1 {[%emt 0:01:20]} 30. Rxd1 {[%emt 0:00:04]} Nxc4 {[%emt 0:00:38]} 31. Ng5 {[%emt 0:01:04]} h6 {[%emt 0:02:12]} 32. Nxf7 {[%emt 0:00:12]} Ncd2 {[%emt 0:02:50]} 33. Nxh6+ {[%emt 0:00:42]} Bxh6 {[%emt 0:00:17]} 34. Qxh6 {[%emt 0:00:05]} 1-0

[Event "2nd Guotai Cup Belt Road 2019"]
[Site "Qinhuangdao"]
[Date "2019.04.20"]
[Round "5.6"]
[White "Zhao, Chenxi"]
[Black "Zvjaginsev, Vadim"]
[Result "0-1"]
[ECO "B50"]
[WhiteElo "2367"]
[BlackElo "2641"]
[Annotator "RC"]
[PlyCount "58"]
[EventDate "2019.04.16"]
[EventType "swiss"]
[EventCountry "CHN"]
[SourceTitle "playchess.com"]
[Source "ChessBase"]
[SourceQuality "1"]
[TimeControl "5400+30"]

1. e4 {[%emt 0:00:00]} c5 {[%emt 0:00:00]} 2. Nf3 {[%emt 0:00:00]} e6 {[%emt 0:00:00]} 3. Nc3 {[%emt 0:02:39]} d6 {[%emt 0:00:41]} 4. b3 {[%emt 0:01:41]} Nf6 {[%emt 0:01:52]} 5. Bb2 {[%emt 0:00:07]} Be7 {[%emt 0:00:37]} 6. d4 {[%emt 0:01:03]} Qa5 {[%emt 0:08:03]} 7. Bb5+ {[%emt 0:06:16]} Bd7 {[%emt 0:08:07]} 8. Bxd7+ {[%emt 0:00:56]} Nbxd7 {[%emt 0:00:12]} 9. O-O {[%emt 0:00:23]} cxd4 {[%emt 0:00:21]} 10. Qxd4 {[%emt 0:02:10]} O-O {[%emt 0:03:57]} 11. Nd2 {[%emt 0:04:11]} Qc5 {[%emt 0:10:54]} 12. Qxc5 {[%emt 0:01:14]} Nxc5 {[%emt 0:00:05]} 13. Rad1 {[%emt 0:00:45]} Rfd8 {[%emt 0:08:37]} 14. f3 {[%emt 0:03:26]} d5 {[%emt 0:06:50]} 15. exd5 {[%emt 0:00:44]} exd5 {[%emt 0:01:47]} 16. Rfe1 {[%emt 0:01:41]} Ne6 {[%emt 0:00:21]} 17. Ncb1 {[%emt 0:03:04]} Rac8 {[%emt 0:07:30]} 18. c4 {[%emt 0:01:08]} dxc4 {[%emt 0:05:16]} 19. Nxc4 {[%emt 0:01:09]} b5 {[%emt 0:00:22]} 20. Rxd8+ {[%emt 0:02:33]} Bxd8 {[%emt 0:05:16]} 21. Nca3 {[%emt 0:02:40]} Bb6+ {[%emt 0:01:57]} 22. Kh1 {[%emt 0:00:41]} Nf4 {[%emt 0:06:22]} 23. Rd1 {[%emt 0:03:41]} a6 {[%emt 0:01:00]} 24. Bxf6 {[%emt 0:00:47]} gxf6 {[%emt 0:00:07]} 25. g3 {[%emt 0:00:27]} Ne2 {[%emt 0:05:07]} 26. Kg2 {[%emt 0:00:26]} Rc1 {[%emt 0:02:45]} 27. Rd2 {[%emt 0:10:11]} Nd4 {[%emt 0:00:38]} 28. Rd3 {[%emt 0:00:46]} Ne6 {[%emt 0:03:20]} 29. Rd2 {[%emt 0:08:35]} Ng5 {[%emt 0:00:20]} 0-1

[Event "2nd Guotai Cup Belt Road 2019"]
[Site "Qinhuangdao"]
[Date "2019.04.20"]
[Round "5.8"]
[White "Chen, Qi b"]
[Black "Wu, Wenjin"]
[Result "1-0"]
[ECO "C41"]
[WhiteElo "2424"]
[BlackElo "2345"]
[Annotator "NA"]
[PlyCount "158"]
[EventDate "2019.04.16"]
[EventType "swiss"]
[EventCountry "CHN"]
[SourceTitle "playchess.com"]
[Source "ChessBase"]
[SourceQuality "1"]
[TimeControl "5400+30"]

1. e4 {[%emt 0:00:00]} e5 {[%emt 0:02:18]} 2. Nf3 {[%emt 0:00:00]} d6 {[%emt 0:01:49]} 3. d4 {[%emt 0:00:41]} exd4 {[%emt 0:00:40]} 4. Nxd4 {[%emt 0:00:04]} Be7 {[%emt 0:00:07]} 5. Nc3 {[%emt 0:01:49]} Nf6 {[%emt 0:00:11]} 6. g3 {[%emt 0:00:29]} d5 {[%emt 0:02:51]} 7. e5 {[%emt 0:03:15]} Ne4 {[%emt 0:03:13]} 8. Nxe4 $1 {[%emt 0:15:44]} dxe4 {[%emt 0:00:07]} 9. e6 {[%emt 0:02:45]} Qd5 {[%emt 0:17:51]} 10. Nb5 {[%emt 0:12:57]} (10. exf7+ $14 Qxf7 11. Be3) 10... Qxd1+ {[%emt 0:04:11]} 11. Kxd1 {[%emt 0:00:02]} Na6 {[%emt 0:00:10]} 12. exf7+ {[%emt 0:00:07]} Kxf7 {[%emt 0:00:05]} 13. Bc4+ {[%emt 0:00:12]} Kg6 {[%emt 0:01:33]} 14. h3 {[%emt 0:00:57]} Rd8+ {[%emt 0:00:43]} 15. Ke2 {[%emt 0:01:13]} c6 {[%emt 0:02:42]} 16. Nc3 {[%emt 0:01:29]} b5 {[%emt 0:01:18]} 17. Bb3 {[%emt 0:00:11]} Nc5 {[%emt 0:00:05]} 18. Be3 $15 {[%emt 0:02:00]} a5 {[%emt 0:04:03]} 19. Bxc5 {[%emt 0:09:55]} Bxc5 {[%emt 0:00:18]} 20. a4 {[%emt 0:00:15]} Bd4 {[%emt 0:01:48]} 21. axb5 {[%emt 0:08:35]} Bxc3 {[%emt 0:01:13]} 22. bxc3 {[%emt 0:01:26]} cxb5 {[%emt 0:00:03]} 23. Ke3 {[%emt 0:06:52]} a4 {[%emt 0:00:46]} 24. Ba2 {[%emt 0:00:03]} Ra6 {[%emt 0:05:37]} 25. Rab1 {[%emt 0:03:58]} Rc6 {[%emt 0:04:14]} 26. c4 {[%emt 0:00:21]} Be6 {[%emt 0:00:48]} 27. Rxb5 {[%emt 0:03:18]} Bxc4 {[%emt 0:00:08]} 28. Bxc4 {[%emt 0:00:13]} Rxc4 {[%emt 0:00:03]} 29. Ra1 {[%emt 0:05:41]} Rf8 {[%emt 0:00:31]} 30. Ra2 {[%emt 0:00:17]} Rf5 {[%emt 0:03:59]} 31. Rb6+ {[%emt 0:00:48]} Rf6 {[%emt 0:00:08]} 32. Rb5 {[%emt 0:00:39]} h5 {[%emt 0:07:41]} 33. Ra5 {[%emt 0:04:33]} Rc3+ {[%emt 0:00:32]} 34. Kd4 {[%emt 0:00:16]} Rcf3 {[%emt 0:04:03]} 35. c4 {[%emt 0:00:13]} e3 {[%emt 0:02:33]} 36. fxe3 {[%emt 0:00:38]} Rxg3 {[%emt 0:00:01]} 37. R5xa4 {[%emt 0:03:12]} Rxh3 {[%emt 0:01:22]} 38. Ra6 {[%emt 0:00:51]} Rh1 {[%emt 0:00:54]} 39. Rg2+ {[%emt 0:01:59]} Kh6 {[%emt 0:03:41]} 40. Rxf6+ gxf6 {[%emt 0:00:01]} 41. Rc2 {[%emt 0:01:32]} Rd1+ {[%emt 0:00:34]} 42. Ke4 {[%emt 0:00:19]} h4 {[%emt 0:04:48]} 43. c5 {[%emt 0:00:38]} Kg5 {[%emt 0:04:45]} 44. c6 {[%emt 0:02:13]} Rd8 {[%emt 0:00:11]} 45. Rg2+ {[%emt 0:03:08]} Kh5 {[%emt 0:00:06]} 46. c7 {[%emt 0:04:44]} Rc8 {[%emt 0:01:07]} 47. Rg7 {[%emt 0:00:03]} Kh6 {[%emt 0:01:01]} 48. Rd7 {[%emt 0:00:09]} h3 {[%emt 0:14:49]} 49. Kf3 {[%emt 0:00:08]} Kg5 {[%emt 0:00:04]} 50. Kg3 {[%emt 0:00:23]} Kf5 {[%emt 0:00:10]} 51. Kxh3 {[%emt 0:00:56]} Ke4 {[%emt 0:00:03]} 52. Kg4 {[%emt 0:00:54]} Ke5 {[%emt 0:02:45]} 53. Re7+ {[%emt 0:02:09]} Kd6 {[%emt 0:00:06]} 54. Rg7 {[%emt 0:00:21]} Ke5 {[%emt 0:00:31]} 55. Kf3 {[%emt 0:00:30]} Ra8 {[%emt 0:01:25]} 56. Rg1 {[%emt 0:00:25]} Kd6 {[%emt 0:00:29]} 57. Rg7 {[%emt 0:01:03]} Ke5 {[%emt 0:00:13]} 58. Re7+ {[%emt 0:00:31]} Kd6 {[%emt 0:00:07]} 59. Rh7 {[%emt 0:00:01]} Ke5 {[%emt 0:00:13]} 60. Kg4 {[%emt 0:00:41]} Ra4+ {[%emt 0:01:21]} 61. Kh5 {[%emt 0:00:05]} Rc4 {[%emt 0:00:06]} 62. Kg6 {[%emt 0:00:22]} Ke6 {[%emt 0:00:05]} 63. e4 {[%emt 0:01:25]} Rc1 {[%emt 0:00:06]} 64. Rg7 {[%emt 0:00:07]} Rc2 {[%emt 0:00:44]} 65. Rh7 {[%emt 0:00:39]} Rc1 {[%emt 0:00:12]} 66. Rg7 {[%emt 0:00:35]} Rc2 {[%emt 0:00:07]} 67. Rh7 {[%emt 0:00:56]} Rc1 {[%emt 0:00:07]} 68. Rf7 {[%emt 0:00:16]} Rg1+ {[%emt 0:00:06]} 69. Kh5 {[%emt 0:00:01]} Rc1 {[%emt 0:00:11]} 70. Rg7 {[%emt 0:00:06]} Ke5 {[%emt 0:00:28]} 71. Re7+ {[%emt 0:00:21]} Kd6 {[%emt 0:00:06]} 72. Rh7 {[%emt 0:00:04]} Ke5 {[%emt 0:00:25]} 73. Kg6 {[%emt 0:00:41]} Ke6 {[%emt 0:00:05]} 74. Kh6 {[%emt 0:00:11]} Ke5 {[%emt 0:00:47]} 75. Re7+ {[%emt 0:00:14]} Kd6 {[%emt 0:00:03]} 76. Rf7 {[%emt 0:00:06]} Ke6 {[%emt 0:00:06]} 77. Kg7 {[%emt 0:00:12]} Rg1+ {[%emt 0:04:58]} 78. Kf8 {[%emt 0:00:04]} Rc1 {[%emt 0:00:08]} 79. Ke8 {[%emt 0:00:20]} Kd6 {[%emt 0:00:23]} 1-0

[Event "2nd Guotai Cup Belt Road 2019"]
[Site "Qinhuangdao"]
[Date "2019.04.20"]
[Round "5.9"]
[White "Peng, Hongchi"]
[Black "Zhang, Ziji"]
[Result "1-0"]
[ECO "C92"]
[WhiteElo "2347"]
[BlackElo "2414"]
[Annotator "NA"]
[PlyCount "147"]
[EventDate "2019.04.16"]
[EventType "swiss"]
[EventCountry "CHN"]
[SourceTitle "playchess.com"]
[Source "ChessBase"]
[SourceQuality "1"]
[TimeControl "5400+30"]

1. e4 {[%emt 0:00:00]} e5 {[%emt 0:00:00]} 2. Nf3 {[%emt 0:00:00]} Nc6 {[%emt 0:00:00]} 3. Bb5 {[%emt 0:00:00]} a6 {[%emt 0:00:02]} 4. Ba4 {[%emt 0:00:00]} Nf6 {[%emt 0:00:24]} 5. O-O {[%emt 0:00:00]} Be7 {[%emt 0:00:23]} 6. Re1 {[%emt 0:00:00]} b5 {[%emt 0:00:08]} 7. Bb3 {[%emt 0:00:00]} d6 {[%emt 0:00:11]} 8. c3 {[%emt 0:00:09]} O-O {[%emt 0:00:19]} 9. h3 {[%emt 0:00:02]} Bb7 {[%emt 0:00:19]} 10. d4 {[%emt 0:00:06]} Re8 {[%emt 0:00:10]} 11. Ng5 {[%emt 0:02:40]} Rf8 {[%emt 0:00:07]} 12. Nf3 {[%emt 0:00:02]} Re8 {[%emt 0:01:33]} 13. Nbd2 {[%emt 0:01:19]} Bf8 {[%emt 0:00:26]} 14. a4 {[%emt 0:00:46]} h6 {[%emt 0:00:41]} 15. Bc2 {[%emt 0:00:12]} exd4 {[%emt 0:00:42]} 16. cxd4 {[%emt 0:00:04]} Nb4 {[%emt 0:00:08]} 17. Bb1 {[%emt 0:00:03]} c5 {[%emt 0:00:08]} 18. d5 {[%emt 0:00:03]} c4 {[%emt 0:01:33]} ({Black should try} 18... Nd7 $11) 19. Ra3 {[%emt 0:00:12]} (19. Nd4 $14) 19... Nd7 {[%emt 0:01:15]} 20. Ree3 {[%emt 0:00:24]} Rc8 {[%emt 0:01:25]} 21. Nd4 {[%emt 0:07:48]} Ne5 {[%emt 0:05:03]} 22. axb5 {[%emt 0:09:40]} axb5 {[%emt 0:00:05]} 23. N2f3 {[%emt 0:07:35]} Ned3 {[%emt 0:08:48]} 24. Nxb5 {[%emt 0:03:56]} Qb6 {[%emt 0:01:10]} 25. Nc3 {[%emt 0:00:36]} g6 {[%emt 0:02:05]} (25... Nxc1 $14 26. Qxc1 Be7) 26. Na4 {[%emt 0:01:18]} ({Don't do} 26. Bxd3 Nxd3 27. Na4 Qb5 $16) 26... Qa7 {[%emt 0:16:22]} 27. Bd2 {[%emt 0:02:38]} Bg7 $16 {[%emt 0:01:16]} 28. Bc3 {[%emt 0:24:27]} Nxd5 {[%emt 0:08:27]} 29. Rxd3 {[%emt 0:19:22]} cxd3 {[%emt 0:00:13]} 30. exd5 {[%emt 0:00:03]} Bxd5 {[%emt 0:04:17]} 31. Bxd3 {[%emt 0:02:06]} Qb7 {[%emt 0:01:48]} 32. Bxg7 {[%emt 0:09:12]} Bxf3 {[%emt 0:01:39]} 33. Qxf3 {[%emt 0:02:19]} Rc1+ {[%emt 0:02:10]} 34. Kh2 {[%emt 0:00:04]} Qxf3 {[%emt 0:00:04]} 35. gxf3 {[%emt 0:00:01]} Kxg7 {[%emt 0:00:06]} 36. f4 {[%emt 0:01:14]} Rb8 {[%emt 0:05:04]} 37. Rc3 {[%emt 0:05:47]} Rxc3 {[%emt 0:06:29]} 38. bxc3 {[%emt 0:00:01]} Kf6 {[%emt 0:01:10]} 39. Kg2 {[%emt 0:00:10]} g5 {[%emt 0:01:12]} 40. Kf3 {[%emt 0:00:25]} Rb3 {[%emt 0:00:54]} 41. fxg5+ {[%emt 0:02:01]} hxg5 {[%emt 0:00:04]} 42. Kg4 {[%emt 0:01:47]} Rb8 {[%emt 0:03:01]} 43. f3 {[%emt 0:01:00]} Rb7 {[%emt 0:04:55]} 44. Be4 {[%emt 0:00:29]} Rb8 {[%emt 0:00:09]} 45. c4 {[%emt 0:00:47]} Rh8 {[%emt 0:01:29]} 46. Nb6 {[%emt 0:00:52]} Rh4+ {[%emt 0:00:03]} 47. Kg3 {[%emt 0:00:02]} Ke5 {[%emt 0:00:18]} 48. Bd5 {[%emt 0:00:35]} Kf6 {[%emt 0:05:06]} 49. Nc8 {[%emt 0:00:24]} Ke5 {[%emt 0:01:41]} 50. Bxf7 {[%emt 0:00:14]} Rd4 {[%emt 0:01:29]} 51. Bd5 {[%emt 0:00:40]} Rh4 {[%emt 0:00:12]} 52. Ne7 {[%emt 0:00:16]} Kf6 {[%emt 0:00:13]} 53. Nc6 {[%emt 0:00:08]} Rf4 {[%emt 0:00:13]} 54. Be4 {[%emt 0:00:13]} Rh4 {[%emt 0:00:11]} 55. Nb4 {[%emt 0:00:25]} Rh8 {[%emt 0:00:20]} 56. Nd3 {[%emt 0:00:19]} Rc8 {[%emt 0:00:49]} 57. Bd5 {[%emt 0:00:03]} Kf5 {[%emt 0:00:05]} 58. Nf2 {[%emt 0:00:41]} Rb8 {[%emt 0:00:30]} 59. Be4+ {[%emt 0:01:00]} Kf6 {[%emt 0:00:14]} 60. Ng4+ {[%emt 0:00:49]} Ke6 {[%emt 0:00:10]} 61. Bd5+ {[%emt 0:02:09]} Kf5 {[%emt 0:00:05]} 62. Nh6+ {[%emt 0:00:17]} Kg6 {[%emt 0:01:07]} 63. Ng4 {[%emt 0:00:48]} Kf5 {[%emt 0:00:04]} 64. Nf2 {[%emt 0:00:07]} Rb6 {[%emt 0:03:01]} 65. Ne4 {[%emt 0:00:24]} Ra6 {[%emt 0:00:09]} 66. Bb7 {[%emt 0:00:18]} Rb6 {[%emt 0:00:12]} 67. Bc8+ {[%emt 0:00:13]} Kg6 {[%emt 0:00:33]} 68. Be6 {[%emt 0:00:25]} Ra6 {[%emt 0:00:10]} 69. Bd7 {[%emt 0:00:59]} Rb6 {[%emt 0:00:13]} 70. Kg4 {[%emt 0:00:15]} Rb1 {[%emt 0:00:52]} 71. Be8+ {[%emt 0:00:10]} Kh6 {[%emt 0:00:03]} 72. Nxd6 {[%emt 0:00:28]} Rg1+ {[%emt 0:00:18]} 73. Kf5 {[%emt 0:00:03]} Rg3 {[%emt 0:00:05]} 74. Nf7+ {[%emt 0:00:07]} 1-0

[Event "2nd Guotai Cup Belt Road 2019"]
[Site "Qinhuangdao"]
[Date "2019.04.20"]
[Round "5.10"]
[White "Ma, Lin"]
[Black "Peng, Xiongjian"]
[Result "0-1"]
[ECO "A60"]
[WhiteElo "2167"]
[BlackElo "2459"]
[Annotator "ChessBase"]
[PlyCount "114"]
[EventDate "2019.04.16"]
[EventType "swiss"]
[EventCountry "CHN"]
[SourceTitle "playchess.com"]
[Source "ChessBase"]
[SourceQuality "1"]
[TimeControl "5400+30"]

1. d4 {[%emt 0:00:00]} Nf6 {[%emt 0:00:06]} 2. c4 {[%emt 0:00:00]} c5 {[%emt 0:00:11]} 3. d5 {[%emt 0:02:27]} e6 {[%emt 0:00:07]} 4. Nc3 {[%emt 0:00:55]} exd5 {[%emt 0:00:06]} 5. cxd5 {[%emt 0:00:03]} Bd6 {[%emt 0:02:00]} 6. Nf3 {[%emt 0:04:46]} O-O {[%emt 0:01:05]} 7. Nd2 {[%emt 0:03:12]} Bc7 {[%emt 0:01:28]} 8. e4 {[%emt 0:01:13]} Re8 {[%emt 0:03:26]} 9. Be2 {[%emt 0:03:46]} Be5 {[%emt 0:03:14]} 10. O-O {[%emt 0:14:12]} a6 {[%emt 0:00:15]} 11. a4 {[%emt 0:00:58]} Qc7 {[%emt 0:00:23]} 12. h3 {[%emt 0:06:15]} d6 {[%emt 0:00:11]} 13. Re1 {[%emt 0:01:54]} Nbd7 {[%emt 0:00:53]} 14. Bd3 {[%emt 0:07:51]} Bxc3 {[%emt 0:04:18]} 15. bxc3 {[%emt 0:00:05]} Ne5 {[%emt 0:00:03]} 16. Bf1 {[%emt 0:04:18]} c4 {[%emt 0:00:09]} 17. Qc2 {[%emt 0:12:37]} Bd7 {[%emt 0:01:15]} 18. f4 {[%emt 0:06:31]} Ng6 {[%emt 0:02:56]} 19. Nxc4 {[%emt 0:01:23]} Nxd5 {[%emt 0:00:41]} 20. Ba3 {[%emt 0:03:01]} Ndxf4 {[%emt 0:03:18]} 21. Nxd6 {[%emt 0:00:52]} Re6 {[%emt 0:01:05]} 22. Nf5 {[%emt 0:07:26]} Ne5 {[%emt 0:05:30]} 23. Qf2 {[%emt 0:00:00]} Nfg6 {[%emt 0:03:44]} 24. Qd4 {[%emt 0:00:00]} Rc8 {[%emt 0:00:45]} 25. Re3 {[%emt 0:01:19]} Qb6 {[%emt 0:02:34]} 26. Nd6 {[%emt 0:00:28]} Rc6 {[%emt 0:00:37]} 27. a5 {[%emt 0:05:39]} Qc7 {[%emt 0:02:16]} 28. Nf5 {[%emt 0:00:56]} h6 {[%emt 0:05:00]} 29. Bb4 {[%emt 0:00:54]} Rf6 {[%emt 0:00:57]} 30. Be7 {[%emt 0:01:16]} Rfe6 {[%emt 0:00:45]} 31. Bb4 {[%emt 0:00:03]} Kh7 {[%emt 0:02:39]} 32. Rd1 {[%emt 0:01:32]} Rf6 {[%emt 0:00:54]} 33. Be7 {[%emt 0:01:38]} Rfe6 {[%emt 0:03:52]} 34. Bb4 {[%emt 0:00:01]} Bc8 {[%emt 0:01:09]} 35. Ree1 {[%emt 0:03:51]} Rf6 {[%emt 0:08:59]} 36. Qf2 {[%emt 0:03:25]} Be6 {[%emt 0:03:33]} 37. Be2 {[%emt 0:01:38]} Qc8 {[%emt 0:02:20]} 38. Rf1 {[%emt 0:00:26]} Bb3 {[%emt 0:02:07]} 39. Rd4 {[%emt 0:00:46]} Rce6 {[%emt 0:00:55]} 40. Qe3 {[%emt 0:01:45]} Qc6 {[%emt 0:04:49]} 41. Ng3 {[%emt 0:00:28]} Rxf1+ {[%emt 0:01:51]} 42. Bxf1 {[%emt 0:00:03]} Qc7 {[%emt 0:00:32]} 43. Rd2 {[%emt 0:01:01]} Nh4 {[%emt 0:02:05]} 44. Rf2 {[%emt 0:00:34]} Bc4 {[%emt 0:02:32]} 45. Nf5 {[%emt 0:00:23]} Nhg6 {[%emt 0:01:56]} 46. Qd4 {[%emt 0:00:28]} Bxf1 {[%emt 0:01:02]} 47. Rxf1 {[%emt 0:00:03]} Qc6 {[%emt 0:00:58]} 48. Nd6 {[%emt 0:00:48]} Re7 {[%emt 0:01:58]} 49. Qd5 {[%emt 0:00:43]} f6 {[%emt 0:00:36]} 50. Qd4 {[%emt 0:00:33]} Rd7 {[%emt 0:00:13]} 51. Rd1 {[%emt 0:00:21]} Qa4 {[%emt 0:01:30]} 52. Rd2 {[%emt 0:00:32]} Nc6 {[%emt 0:01:09]} 53. Qc5 {[%emt 0:00:30]} Qa1+ {[%emt 0:01:10]} 54. Kh2 {[%emt 0:00:09]} Qe1 {[%emt 0:00:07]} 55. Qf5 {[%emt 0:00:54]} Qxd2 {[%emt 0:01:19]} 56. Qxd7 {[%emt 0:00:02]} Nxb4 {[%emt 0:00:16]} 57. cxb4 {[%emt 0:00:04]} Nh4 {[%emt 0:00:07]} 0-1

[Event "2nd Guotai Cup Belt Road 2019"]
[Site "Qinhuangdao"]
[Date "2019.04.24"]
[Round "7.7"]
[White "Fang, Yuxiang"]
[Black "Xu, Yinglun"]
[Result "0-1"]
[ECO "D27"]
[WhiteElo "2472"]
[BlackElo "2532"]
[Annotator "ChessBase"]
[PlyCount "96"]
[EventDate "2019.04.16"]
[EventType "swiss"]
[EventCountry "CHN"]
[SourceTitle "playchess.com"]
[Source "ChessBase"]
[SourceQuality "1"]
[TimeControl "5400+30"]

1. d4 {[%emt 0:00:00]} d5 {[%emt 0:02:32]} 2. Nf3 {[%emt 0:03:25]} Nf6 {[%emt 0:00:29]} 3. c4 {[%emt 0:01:18]} e6 {[%emt 0:00:27]} 4. Nc3 {[%emt 0:00:41]} dxc4 {[%emt 0:00:25]} 5. e3 {[%emt 0:01:35]} a6 {[%emt 0:00:35]} 6. a4 {[%emt 0:01:30]} c5 {[%emt 0:01:15]} 7. Bxc4 {[%emt 0:01:30]} Nc6 {[%emt 0:00:35]} 8. O-O {[%emt 0:01:33]} Be7 {[%emt 0:00:21]} 9. Qe2 {[%emt 0:01:26]} O-O {[%emt 0:00:52]} 10. dxc5 {[%emt 0:08:37]} Bxc5 {[%emt 0:12:17]} 11. e4 {[%emt 0:03:26]} Ng4 {[%emt 0:04:21]} 12. e5 {[%emt 0:14:28]} Nd4 {[%emt 0:11:53]} 13. Nxd4 {[%emt 0:00:37]} Qxd4 {[%emt 0:00:04]} 14. Ne4 {[%emt 0:01:23]} Nxe5 {[%emt 0:09:22]} 15. Be3 {[%emt 0:03:32]} Qxe4 {[%emt 0:12:18]} 16. Bxc5 {[%emt 0:00:35]} Qxe2 {[%emt 0:00:06]} 17. Bxe2 {[%emt 0:00:05]} Rd8 {[%emt 0:00:08]} 18. f4 {[%emt 0:06:48]} Ng6 {[%emt 0:15:26]} 19. Rad1 {[%emt 0:08:38]} Rd5 {[%emt 0:00:38]} 20. f5 {[%emt 0:08:16]} Ne5 {[%emt 0:01:18]} 21. Bd6 {[%emt 0:02:50]} Rxd1 {[%emt 0:10:32]} 22. Rxd1 {[%emt 0:00:19]} Nc6 {[%emt 0:00:16]} 23. b4 {[%emt 0:09:28]} exf5 {[%emt 0:01:29]} 24. Bc7 {[%emt 0:01:13]} f6 {[%emt 0:08:50]} 25. Bc4+ {[%emt 0:04:04]} Kf8 {[%emt 0:00:05]} 26. b5 {[%emt 0:00:04]} axb5 {[%emt 0:00:03]} 27. axb5 {[%emt 0:00:01]} Ne5 {[%emt 0:00:39]} 28. Rd8+ {[%emt 0:04:14]} Ke7 {[%emt 0:00:04]} 29. Bd5 {[%emt 0:00:02]} Ng4 {[%emt 0:03:03]} 30. g3 {[%emt 0:06:16]} Ra1+ {[%emt 0:00:08]} 31. Kg2 {[%emt 0:00:01]} Ne3+ {[%emt 0:00:36]} 32. Kf3 {[%emt 0:00:50]} Nxd5 {[%emt 0:00:11]} 33. Rxd5 {[%emt 0:00:03]} Bd7 {[%emt 0:00:16]} 34. Rc5 {[%emt 0:00:13]} Ra3+ {[%emt 0:00:52]} 35. Kf2 {[%emt 0:00:08]} Ra2+ {[%emt 0:00:04]} 36. Kg1 {[%emt 0:00:01]} Rb2 {[%emt 0:00:29]} 37. b6 {[%emt 0:00:07]} Ke6 {[%emt 0:00:12]} 38. h4 {[%emt 0:00:13]} Bc6 {[%emt 0:00:17]} 39. Kf1 {[%emt 0:00:02]} Be4 {[%emt 0:00:35]} 40. Bd8 {[%emt 0:00:23]} Kd7 {[%emt 0:00:59]} 41. Bc7 {[%emt 0:00:04]} g5 {[%emt 0:01:01]} 42. Rc3 {[%emt 0:00:21]} h6 {[%emt 0:00:53]} 43. Re3 {[%emt 0:00:42]} Ke6 {[%emt 0:00:36]} 44. Rc3 {[%emt 0:00:02]} f4 {[%emt 0:01:27]} 45. gxf4 {[%emt 0:01:21]} gxh4 {[%emt 0:00:10]} 46. Kg1 {[%emt 0:00:25]} Kf5 {[%emt 0:00:32]} 47. Bd8 {[%emt 0:00:13]} Kg4 {[%emt 0:01:10]} 48. Bxf6 {[%emt 0:00:04]} h3 {[%emt 0:00:26]} 0-1

[Event "2nd Guotai Cup Belt Road 2019"]
[Site "Qinhuangdao"]
[Date "2019.04.24"]
[Round "7.9"]
[White "Peng, Hongchi"]
[Black "Wu, Wenjin"]
[Result "0-1"]
[ECO "C66"]
[WhiteElo "2347"]
[BlackElo "2345"]
[Annotator "ChessBase"]
[PlyCount "92"]
[EventDate "2019.04.16"]
[EventType "swiss"]
[EventCountry "CHN"]
[SourceTitle "playchess.com"]
[Source "ChessBase"]
[SourceQuality "1"]
[TimeControl "5400+30"]

1. e4 {[%emt 0:00:00]} e5 {[%emt 0:00:50]} 2. Nf3 {[%emt 0:00:00]} Nc6 {[%emt 0:00:06]} 3. Bb5 {[%emt 0:00:00]} Nf6 {[%emt 0:00:41]} 4. d3 {[%emt 0:00:00]} d6 {[%emt 0:00:23]} 5. O-O {[%emt 0:00:14]} Bd7 {[%emt 0:00:27]} 6. c4 {[%emt 0:00:22]} g6 {[%emt 0:03:17]} 7. Nc3 {[%emt 0:00:34]} Bg7 {[%emt 0:00:37]} 8. Be3 {[%emt 0:03:33]} O-O {[%emt 0:01:06]} 9. h3 {[%emt 0:01:17]} Nh5 {[%emt 0:04:12]} 10. Bxc6 {[%emt 0:07:27]} bxc6 {[%emt 0:13:17]} 11. d4 {[%emt 0:02:03]} exd4 {[%emt 0:01:57]} 12. Bxd4 {[%emt 0:00:14]} Bh6 {[%emt 0:00:34]} 13. Re1 {[%emt 0:11:03]} Rb8 {[%emt 0:04:24]} 14. b3 {[%emt 0:00:51]} c5 {[%emt 0:00:18]} 15. Be3 {[%emt 0:00:20]} Bg7 {[%emt 0:00:03]} 16. e5 {[%emt 0:05:01]} Bc6 {[%emt 0:06:22]} 17. Nd5 {[%emt 0:03:40]} Bxd5 {[%emt 0:02:26]} 18. Qxd5 {[%emt 0:01:07]} dxe5 {[%emt 0:00:26]} 19. Qxc5 {[%emt 0:04:34]} Re8 {[%emt 0:13:56]} 20. Rad1 {[%emt 0:10:07]} Qc8 {[%emt 0:00:27]} 21. Qc6 {[%emt 0:13:49]} e4 {[%emt 0:03:54]} 22. Ng5 {[%emt 0:01:12]} Bc3 {[%emt 0:00:08]} 23. Nxf7 {[%emt 0:09:41]} Nf6 {[%emt 0:08:20]} 24. Ng5 {[%emt 0:13:16]} h6 {[%emt 0:05:29]} 25. Bxa7 {[%emt 0:00:02]} Qb7 {[%emt 0:02:08]} 26. Qc5 {[%emt 0:07:35]} Ra8 {[%emt 0:01:09]} 27. Re3 {[%emt 0:00:52]} Qxa7 {[%emt 0:08:43]} 28. Qc6 {[%emt 0:00:03]} Qb6 {[%emt 0:05:56]} 29. Qxb6 {[%emt 0:00:34]} cxb6 {[%emt 0:00:01]} 30. Rxc3 {[%emt 0:00:20]} hxg5 {[%emt 0:00:02]} 31. a4 {[%emt 0:03:37]} Kf7 {[%emt 0:00:35]} 32. c5 {[%emt 0:01:15]} Rac8 {[%emt 0:03:06]} 33. Rdc1 {[%emt 0:00:13]} Nd5 {[%emt 0:00:30]} 34. Rc4 {[%emt 0:00:07]} Nf4 {[%emt 0:01:08]} 35. Kh2 {[%emt 0:01:54]} Nd3 {[%emt 0:00:39]} 36. R1c3 {[%emt 0:00:07]} Rxc5 {[%emt 0:02:20]} 37. Kg3 {[%emt 0:00:11]} Rec8 {[%emt 0:01:26]} 38. f3 {[%emt 0:00:12]} Rxc4 {[%emt 0:00:07]} 39. bxc4 {[%emt 0:00:11]} Nc5 {[%emt 0:00:15]} 40. Ra3 {[%emt 0:00:04]} Ra8 {[%emt 0:00:25]} 41. fxe4 {[%emt 0:00:03]} Rxa4 {[%emt 0:00:07]} 42. Rxa4 {[%emt 0:02:44]} Nxa4 {[%emt 0:00:08]} 43. Kg4 {[%emt 0:00:01]} Nc5 {[%emt 0:01:02]} 44. e5 {[%emt 0:00:32]} Nd3 {[%emt 0:00:31]} 45. e6+ {[%emt 0:00:01]} Kf6 {[%emt 0:00:19]} 46. e7 {[%emt 0:00:10]} Ne5+ {[%emt 0:00:55]} 0-1